[Event "Live Chess"]
[Site "Chess.com"]
[Date "2023.05.20"]
[Round "-"]
[White "domrobson"]
[Black "TheSmoulderingMaster"]
[Result "1-0"]
[WhiteElo "1785"]
[BlackElo "1702"]
[TimeControl "300"]
[EndTime "15:23:38 PDT"]
[Termination "domrobson won by checkmate"]

1. d4 {[%clk 0:04:57.7]} 1... Nf6 {[%clk 0:04:58.7]} 2. c4 {[%clk 0:04:57]} 2...
d6 {[%clk 0:04:57.4]} 3. Nf3 {[%clk 0:04:54.4]} 3... g6 {[%clk 0:04:56.6]} 4.
Nc3 {[%clk 0:04:53.7]} 4... Bg7 {[%clk 0:04:55.8]} 5. e4 {[%clk 0:04:52.7]} 5...
O-O {[%clk 0:04:55.1]} 6. Be2 {[%clk 0:04:52.3]} 6... e5 {[%clk 0:04:51.2]} 7.
d5 {[%clk 0:04:49.9]} 7... Nh5 {[%clk 0:04:48.8]} 8. O-O {[%clk 0:04:45.9]} 8...
f5 {[%clk 0:04:47.4]} 9. Ne1 {[%clk 0:04:43.7]} 9... Nf6 {[%clk 0:04:43.7]} 10.
f3 {[%clk 0:04:41.9]} 10... f4 {[%clk 0:04:42.2]} 11. Kh1 {[%clk 0:04:39.8]}
11... Nh5 {[%clk 0:04:41.3]} 12. b4 {[%clk 0:04:33.8]} 12... Qh4 {[%clk
0:04:39.4]} 13. Kg1 {[%clk 0:04:30.4]} 13... Nd7 {[%clk 0:04:35.7]} 14. Bd3
{[%clk 0:04:26.2]} 14... Ndf6 {[%clk 0:04:34.4]} 15. Ne2 {[%clk 0:04:24.9]}
15... g5 {[%clk 0:04:31]} 16. g3 {[%clk 0:04:21.1]} 16... fxg3 {[%clk
0:04:28.7]} 17. hxg3 {[%clk 0:04:20.3]} 17... Nxg3 {[%clk 0:04:27.5]} 18. Nxg3
{[%clk 0:04:17.9]} 18... Qxg3+ {[%clk 0:04:26.7]} 19. Ng2 {[%clk 0:04:17.1]}
19... Bh3 {[%clk 0:04:24.3]} 20. Qe2 {[%clk 0:04:14.7]} 20... Nh5 {[%clk
0:04:22.3]} 21. Qf2 {[%clk 0:04:09.9]} 21... g4 {[%clk 0:04:04]} 22. Qxg3 {[%clk
0:04:04.4]} 22... Nxg3 {[%clk 0:04:02.7]} 23. Rf2 {[%clk 0:03:59.9]} 23... gxf3
{[%clk 0:04:00.3]} 24. Nh4 {[%clk 0:03:56.7]} 24... Bf6 {[%clk 0:03:53.4]} 25.
Nxf3 {[%clk 0:03:54.8]} 25... Bg4 {[%clk 0:03:47.6]} 26. Ng5 {[%clk 0:03:50.6]}
26... Bxg5 {[%clk 0:03:42.9]} 27. Bxg5 {[%clk 0:03:49.2]} 27... Rf3 {[%clk
0:03:35.6]} 28. Rxf3 {[%clk 0:03:45.9]} 28... Bxf3 {[%clk 0:03:33.6]} 29. Kf2
{[%clk 0:03:43.9]} 29... Bxe4 {[%clk 0:03:31.8]} 30. Kxg3 {[%clk 0:03:39.9]}
30... Bxd3 {[%clk 0:03:30.5]} 31. c5 {[%clk 0:03:36.5]} 31... dxc5 {[%clk
0:03:27.9]} 32. bxc5 {[%clk 0:03:35.3]} 32... Bc4 {[%clk 0:03:22.6]} 33. d6
{[%clk 0:03:32]} 33... cxd6 {[%clk 0:03:21.8]} 34. cxd6 {[%clk 0:03:31.1]} 34...
Be6 {[%clk 0:03:19.4]} 35. Re1 {[%clk 0:03:27.5]} 35... Kf7 {[%clk 0:03:13.8]}
36. Rxe5 {[%clk 0:03:25.7]} 36... Rg8 {[%clk 0:03:11.8]} 37. Kf4 {[%clk
0:03:23.3]} 37... Rg6 {[%clk 0:03:07.4]} 38. d7 {[%clk 0:03:21.3]} 38... Bxd7
{[%clk 0:03:06.1]} 39. Re7+ {[%clk 0:03:20.3]} 39... Kf8 {[%clk 0:03:01.8]} 40.
Rxd7 {[%clk 0:03:18]} 40... Rb6 {[%clk 0:03:00.2]} 41. Rxh7 {[%clk 0:03:13.6]}
41... Rb2 {[%clk 0:02:58.1]} 42. a3 {[%clk 0:03:10.5]} 42... Rb3 {[%clk
0:02:56.1]} 43. Rc7 {[%clk 0:03:06.7]} 43... Ke8 {[%clk 0:02:50.8]} 44. Be7
{[%clk 0:03:03.8]} 44... a5 {[%clk 0:02:46.2]} 45. Ke4 {[%clk 0:02:57.2]} 45...
b5 {[%clk 0:02:44.7]} 46. Ra7 {[%clk 0:02:53.8]} 46... b4 {[%clk 0:02:42.6]} 47.
axb4 {[%clk 0:02:52.7]} 47... axb4 {[%clk 0:02:39.6]} 48. Rb7 {[%clk 0:02:51.2]}
48... Rb1 {[%clk 0:02:37.5]} 49. Bxb4 {[%clk 0:02:49.2]} 49... Rh1 {[%clk
0:02:33.8]} 50. Kf3 {[%clk 0:02:47.5]} 50... Kd8 {[%clk 0:02:30.6]} 51. Kg2
{[%clk 0:02:46.7]} 51... Rh5 {[%clk 0:02:28.3]} 52. Rg7 {[%clk 0:02:44.7]} 52...
Ke8 {[%clk 0:02:24.4]} 53. Kg3 {[%clk 0:02:40.5]} 53... Rd5 {[%clk 0:02:21.2]}
54. Kf4 {[%clk 0:02:39.3]} 54... Rd1 {[%clk 0:02:19.8]} 55. Ke4 {[%clk 0:02:35]}
55... Rc1 {[%clk 0:02:15.9]} 56. Kd5 {[%clk 0:02:29.2]} 56... Rh1 {[%clk
0:02:13.6]} 57. Bc3 {[%clk 0:02:23.4]} 57... Kf8 {[%clk 0:02:10.7]} 58. Ra7
{[%clk 0:02:16.7]} 58... Ke8 {[%clk 0:02:08.1]} 59. Ke6 {[%clk 0:02:13.1]} 59...
Rh6+ {[%clk 0:02:03.9]} 60. Bf6 {[%clk 0:02:11.5]} 60... Kf8 {[%clk 0:01:49.1]}
61. Ra8# {[%clk 0:02:09.8]} 1-0

[Event "Live Chess"]
[Site "Chess.com"]
[Date "2023.05.20"]
[Round "-"]
[White "Olisingapore"]
[Black "Man-Del-Brot"]
[Result "1-0"]
[WhiteElo "1863"]
[BlackElo "1121"]
[TimeControl "300"]
[EndTime "15:23:47 PDT"]
[Termination "Olisingapore won on time"]

1. d4 {[%clk 0:04:58.5]} 1... Nf6 {[%clk 0:04:57.8]} 2. c4 {[%clk 0:04:58.2]}
2... e5 {[%clk 0:04:56.6]} 3. dxe5 {[%clk 0:04:56.1]} 3... Ng4 {[%clk
0:04:55.6]} 4. Nf3 {[%clk 0:04:55]} 4... d6 {[%clk 0:04:54.8]} 5. e3 {[%clk
0:04:54.4]} 5... Nc6 {[%clk 0:04:51.6]} 6. Nc3 {[%clk 0:04:54]} 6... Ngxe5
{[%clk 0:04:47.4]} 7. Nxe5 {[%clk 0:04:52.5]} 7... Nxe5 {[%clk 0:04:46.1]} 8.
Be2 {[%clk 0:04:48.2]} 8... c6 {[%clk 0:04:43.5]} 9. O-O {[%clk 0:04:46.4]} 9...
Be7 {[%clk 0:04:42.2]} 10. b3 {[%clk 0:04:40.4]} 10... O-O {[%clk 0:04:39.3]}
11. Bb2 {[%clk 0:04:39.3]} 11... h6 {[%clk 0:04:27.1]} 12. Qc2 {[%clk
0:04:29.6]} 12... Bf6 {[%clk 0:03:56.6]} 13. Ne4 {[%clk 0:04:21.8]} 13... Bf5
{[%clk 0:03:36.2]} 14. Nxf6+ {[%clk 0:04:14.8]} 14... Qxf6 {[%clk 0:03:34.6]}
15. e4 {[%clk 0:04:10.1]} 15... Bd7 {[%clk 0:02:57]} 16. f4 {[%clk 0:04:07.3]}
16... Qg6 {[%clk 0:02:32.9]} 17. fxe5 {[%clk 0:04:03.2]} 17... Bh3 {[%clk
0:02:29.7]} 18. Bf3 {[%clk 0:03:47.6]} 18... dxe5 {[%clk 0:02:27.5]} 19. Rad1
{[%clk 0:03:39.1]} 19... Rfd8 {[%clk 0:02:24.8]} 20. Kh1 {[%clk 0:03:33.9]}
20... Be6 {[%clk 0:02:19.4]} 21. Bxe5 {[%clk 0:03:26.4]} 21... Rxd1 {[%clk
0:01:47.2]} 22. Rxd1 {[%clk 0:03:26.3]} 22... Qg5 {[%clk 0:01:33.5]} 23. Qd2
{[%clk 0:03:17.7]} 23... Qxe5 {[%clk 0:01:26]} 24. Qd4 {[%clk 0:03:07.8]} 24...
Qf6 {[%clk 0:01:04.1]} 25. Qxf6 {[%clk 0:02:55]} 25... gxf6 {[%clk 0:01:02.1]}
26. c5 {[%clk 0:02:53.4]} 26... a5 {[%clk 0:00:58.5]} 27. Rd4 {[%clk 0:02:48.7]}
27... f5 {[%clk 0:00:46.6]} 28. exf5 {[%clk 0:02:46.7]} 28... Bxf5 {[%clk
0:00:44.8]} 29. Ra4 {[%clk 0:02:43.3]} 29... Re8 {[%clk 0:00:31.5]} 30. h3
{[%clk 0:02:41.5]} 30... Re1+ {[%clk 0:00:29.1]} 31. Kh2 {[%clk 0:02:40.5]}
31... Bd3 {[%clk 0:00:04.9]} 32. b4 {[%clk 0:02:37]} 32... Bb5 {[%clk
0:00:02.7]} 33. Rxa5 {[%clk 0:02:33.9]} 1-0

[Event "Live Chess"]
[Site "Chess.com"]
[Date "2023.05.20"]
[Round "-"]
[White "raminguy"]
[Black "Hoogleboogle"]
[Result "1-0"]
[WhiteElo "1949"]
[BlackElo "1351"]
[TimeControl "300"]
[EndTime "15:23:48 PDT"]
[Termination "raminguy won by resignation"]

1. d4 {[%clk 0:04:58.6]} 1... e6 {[%clk 0:04:56.4]} 2. Nc3 {[%clk 0:04:58.1]}
2... d5 {[%clk 0:04:54.9]} 3. Bf4 {[%clk 0:04:57.5]} 3... Bd6 {[%clk 0:04:51.6]}
4. e3 {[%clk 0:04:56.4]} 4... Bxf4 {[%clk 0:04:50.2]} 5. exf4 {[%clk 0:04:56.3]}
5... Nc6 {[%clk 0:04:48.1]} 6. Nf3 {[%clk 0:04:54.8]} 6... Nf6 {[%clk 0:04:46]}
7. Ne5 {[%clk 0:04:53.8]} 7... Nxe5 {[%clk 0:04:43.9]} 8. fxe5 {[%clk
0:04:53.7]} 8... Ne4 {[%clk 0:04:43.1]} 9. Qg4 {[%clk 0:04:34.4]} 9... O-O
{[%clk 0:04:39.8]} 10. Nxe4 {[%clk 0:04:28.6]} 10... dxe4 {[%clk 0:04:37.2]} 11.
Qxe4 {[%clk 0:04:28.5]} 11... Qd5 {[%clk 0:04:25.3]} 12. Qxd5 {[%clk 0:04:20]}
12... exd5 {[%clk 0:04:24]} 13. O-O-O {[%clk 0:04:18.3]} 13... Be6 {[%clk
0:04:03.3]} 14. f4 {[%clk 0:04:16.3]} 14... Rfc8 {[%clk 0:03:53.6]} 15. h3
{[%clk 0:04:07.9]} 15... c5 {[%clk 0:03:49.9]} 16. g4 {[%clk 0:04:07]} 16... c4
{[%clk 0:03:36]} 17. f5 {[%clk 0:04:05.7]} 17... Bd7 {[%clk 0:03:31.1]} 18. Bg2
{[%clk 0:04:05.3]} 18... Bc6 {[%clk 0:03:27.3]} 19. Rhe1 {[%clk 0:04:04.4]}
19... Re8 {[%clk 0:03:25]} 20. h4 {[%clk 0:04:02.1]} 20... h6 {[%clk 0:03:23]}
21. g5 {[%clk 0:03:59.5]} 21... h5 {[%clk 0:03:18.3]} 22. Be4 {[%clk 0:03:48.9]}
22... b5 {[%clk 0:03:08.7]} 23. Bf3 {[%clk 0:03:47.1]} 23... g6 {[%clk
0:03:00.9]} 24. Re3 {[%clk 0:03:36.7]} 24... b4 {[%clk 0:02:53]} 25. Rde1 {[%clk
0:03:35.1]} 25... b3 {[%clk 0:02:46]} 26. a3 {[%clk 0:03:32.3]} 26... bxc2
{[%clk 0:02:43.5]} 27. Kxc2 {[%clk 0:03:31.2]} 27... Ba4+ {[%clk 0:02:40]} 28.
Kc1 {[%clk 0:03:30.1]} 28... Bc6 {[%clk 0:02:36.2]} 29. e6 {[%clk 0:03:24.3]}
29... fxe6 {[%clk 0:02:29.9]} 30. fxg6 {[%clk 0:03:06]} 30... Kg7 {[%clk
0:02:08.1]} 31. Rxe6 {[%clk 0:03:03.3]} 31... Rxe6 {[%clk 0:02:06.4]} 32. Rxe6
{[%clk 0:03:01.7]} 32... Bd7 {[%clk 0:02:04.1]} 33. Rd6 {[%clk 0:02:54]} 33...
Rd8 {[%clk 0:02:01.6]} 34. Bxd5 {[%clk 0:02:50.3]} 34... a5 {[%clk 0:01:43]} 35.
Bxc4 {[%clk 0:02:48.9]} 35... Kf8 {[%clk 0:01:22.3]} 36. Be2 {[%clk 0:02:34]}
36... Ke7 {[%clk 0:01:18.8]} 37. Rf6 {[%clk 0:02:06.9]} 37... Bg4 {[%clk
0:01:15.5]} 38. Rf7+ {[%clk 0:02:01.7]} 38... Ke6 {[%clk 0:01:09.7]} 39. Bc4+
{[%clk 0:01:58.5]} 39... Kd6 {[%clk 0:01:05.9]} 40. g7 {[%clk 0:01:48.6]} 40...
Re8 {[%clk 0:00:56.8]} 41. Rf8 {[%clk 0:01:40.6]} 41... Re1+ {[%clk 0:00:53.8]}
42. Kd2 {[%clk 0:01:38.3]} 42... Re2+ {[%clk 0:00:52.6]} 43. Bxe2 {[%clk
0:01:36.9]} 43... Bxe2 {[%clk 0:00:48]} 44. Kxe2 {[%clk 0:01:34.9]} 1-0

[Event "Live Chess"]
[Site "Chess.com"]
[Date "2023.05.20"]
[Round "-"]
[White "JoshMcK"]
[Black "JohanKjeldahl"]
[Result "0-1"]
[WhiteElo "1548"]
[BlackElo "1867"]
[TimeControl "300"]
[EndTime "15:23:57 PDT"]
[Termination "JohanKjeldahl won by resignation"]

1. e4 {[%clk 0:04:59.1]} 1... c5 {[%clk 0:04:58.3]} 2. c3 {[%clk 0:04:57.9]}
2... g6 {[%clk 0:04:56.1]} 3. d4 {[%clk 0:04:57]} 3... cxd4 {[%clk 0:04:54.4]}
4. cxd4 {[%clk 0:04:56.9]} 4... d5 {[%clk 0:04:52.7]} 5. e5 {[%clk 0:04:55.6]}
5... Bg7 {[%clk 0:04:51.6]} 6. Nf3 {[%clk 0:04:55.3]} 6... Bg4 {[%clk
0:04:48.6]} 7. Be2 {[%clk 0:04:52.9]} 7... Nc6 {[%clk 0:04:46.8]} 8. O-O {[%clk
0:04:51.6]} 8... a6 {[%clk 0:04:45.7]} 9. Nc3 {[%clk 0:04:50.4]} 9... e6 {[%clk
0:04:43.8]} 10. Be3 {[%clk 0:04:44.6]} 10... Nge7 {[%clk 0:04:42.3]} 11. Qb3
{[%clk 0:04:42.7]} 11... b5 {[%clk 0:04:40.1]} 12. a3 {[%clk 0:04:33.4]} 12...
O-O {[%clk 0:04:38.5]} 13. Qc2 {[%clk 0:04:31.8]} 13... f6 {[%clk 0:04:36.5]}
14. exf6 {[%clk 0:04:27.3]} 14... Bxf6 {[%clk 0:04:34.7]} 15. Qd1 {[%clk
0:04:25.7]} 15... Nf5 {[%clk 0:04:25.8]} 16. b4 {[%clk 0:04:07.6]} 16... Bxf3
{[%clk 0:04:21.8]} 17. Bxf3 {[%clk 0:04:05.7]} 17... Bxd4 {[%clk 0:04:19]} 18.
Bxd4 {[%clk 0:04:04.3]} 18... Nfxd4 {[%clk 0:04:16.6]} 19. Bg4 {[%clk
0:03:52.5]} 19... Qg5 {[%clk 0:04:09.3]} 20. h3 {[%clk 0:03:50.4]} 20... h5
{[%clk 0:04:05.7]} 21. Be2 {[%clk 0:03:46.1]} 21... Rf6 {[%clk 0:03:48.8]} 22.
Qd3 {[%clk 0:03:30.7]} 22... Raf8 {[%clk 0:03:44.3]} 23. Rac1 {[%clk 0:03:26.2]}
23... Nxe2+ {[%clk 0:03:36.4]} 24. Nxe2 {[%clk 0:03:23.1]} 24... Ne5 {[%clk
0:03:32.2]} 25. Qc2 {[%clk 0:03:15.2]} 25... Nf3+ {[%clk 0:03:21.8]} 26. Kh1
{[%clk 0:03:08.8]} 26... Nh4 {[%clk 0:03:18.4]} 27. Ng3 {[%clk 0:02:57.5]} 27...
Nxg2 {[%clk 0:03:06.5]} 28. Kxg2 {[%clk 0:02:54.8]} 28... h4 {[%clk 0:03:05.5]}
29. Qc3 {[%clk 0:02:48.1]} 29... hxg3 {[%clk 0:02:59.6]} 30. Qxg3 {[%clk
0:02:45.2]} 30... Qxg3+ {[%clk 0:02:53.5]} 31. fxg3 {[%clk 0:02:43.4]} 31...
Rxf1 {[%clk 0:02:51.6]} 32. Rxf1 {[%clk 0:02:43.3]} 32... Rxf1 {[%clk 0:02:50]}
33. Kxf1 {[%clk 0:02:43.2]} 33... Kf7 {[%clk 0:02:49.1]} 34. Ke2 {[%clk
0:02:42.7]} 34... Kf6 {[%clk 0:02:48.3]} 35. Ke3 {[%clk 0:02:42.6]} 35... e5
{[%clk 0:02:45.6]} 36. Kf3 {[%clk 0:02:39]} 36... Kf5 {[%clk 0:02:43.4]} 37. Ke3
{[%clk 0:02:35]} 37... g5 {[%clk 0:02:39.6]} 38. g4+ {[%clk 0:02:33.9]} 38...
Kf6 {[%clk 0:02:35.8]} 39. Kd3 {[%clk 0:02:32.9]} 39... e4+ {[%clk 0:02:29.9]}
40. Ke3 {[%clk 0:02:32.1]} 40... Ke5 {[%clk 0:02:28.9]} 41. Ke2 {[%clk 0:02:31]}
41... Kf4 {[%clk 0:02:27.4]} 42. Kf2 {[%clk 0:02:30.4]} 42... d4 {[%clk
0:02:25.5]} 43. Kg2 {[%clk 0:02:29.4]} 43... e3 {[%clk 0:02:23.9]} 0-1

[Event "Live Chess"]
[Site "Chess.com"]
[Date "2023.05.20"]
[Round "-"]
[White "jagbama"]
[Black "laminaaprod"]
[Result "0-1"]
[WhiteElo "1123"]
[BlackElo "2246"]
[TimeControl "300"]
[EndTime "15:24:00 PDT"]
[Termination "laminaaprod won by resignation"]

1. Nc3 {[%clk 0:04:53.8]} 1... d5 {[%clk 0:04:44.5]} 2. d4 {[%clk 0:04:49.2]}
2... c5 {[%clk 0:04:43]} 3. Bf4 {[%clk 0:04:41.9]} 3... Nc6 {[%clk 0:04:37.4]}
4. Nb5 {[%clk 0:04:36]} 4... Qa5+ {[%clk 0:04:33.9]} 5. Nc3 {[%clk 0:04:32.1]}
5... cxd4 {[%clk 0:04:33.2]} 6. Bd2 {[%clk 0:04:26.6]} 6... dxc3 {[%clk
0:04:26.8]} 7. Bxc3 {[%clk 0:04:25.8]} 7... Qd8 {[%clk 0:04:24.9]} 8. Nf3 {[%clk
0:04:22]} 8... Nf6 {[%clk 0:04:22.8]} 9. e3 {[%clk 0:04:21]} 9... e6 {[%clk
0:04:21.6]} 10. Bb5 {[%clk 0:04:19.9]} 10... Bd6 {[%clk 0:04:16.8]} 11. Be5
{[%clk 0:04:17.4]} 11... Bxe5 {[%clk 0:04:14.3]} 12. Nxe5 {[%clk 0:04:16.7]}
12... Qa5+ {[%clk 0:04:13]} 13. c3 {[%clk 0:04:05.8]} 13... Qxb5 {[%clk
0:03:56]} 14. Nxc6 {[%clk 0:04:04.3]} 14... bxc6 {[%clk 0:03:51.5]} 15. b3
{[%clk 0:03:54.9]} 15... Ba6 {[%clk 0:03:48.6]} 16. a4 {[%clk 0:03:54]} 16...
Qd3 {[%clk 0:03:41.3]} 17. Qf3 {[%clk 0:03:39.8]} 17... Qxc3+ {[%clk 0:03:37.9]}
18. Kd1 {[%clk 0:03:39.1]} 18... Qxa1+ {[%clk 0:03:37.1]} 19. Kd2 {[%clk
0:03:37.8]} 19... Qxh1 {[%clk 0:03:37]} 0-1

[Event "Live Chess"]
[Site "Chess.com"]
[Date "2023.05.20"]
[Round "-"]
[White "CeladonFish"]
[Black "McSlash1"]
[Result "0-1"]
[WhiteElo "1167"]
[BlackElo "2007"]
[TimeControl "300"]
[EndTime "15:24:00 PDT"]
[Termination "McSlash1 won by resignation"]

1. d4 {[%clk 0:04:59.3]} 1... Nf6 {[%clk 0:04:58.9]} 2. c4 {[%clk 0:04:58.7]}
2... g6 {[%clk 0:04:57.7]} 3. Nc3 {[%clk 0:04:58.4]} 3... d5 {[%clk 0:04:57]} 4.
Bf4 {[%clk 0:04:58]} 4... Bg7 {[%clk 0:04:55.4]} 5. Nf3 {[%clk 0:04:57.2]} 5...
dxc4 {[%clk 0:04:54.1]} 6. e3 {[%clk 0:04:55.1]} 6... O-O {[%clk 0:04:54]} 7.
Bxc4 {[%clk 0:04:54.1]} 7... Nh5 {[%clk 0:04:53.9]} 8. Bd3 {[%clk 0:04:53.5]}
8... Nxf4 {[%clk 0:04:52]} 9. exf4 {[%clk 0:04:52.4]} 9... Bg4 {[%clk
0:04:51.6]} 10. O-O {[%clk 0:04:51.1]} 10... Bxf3 {[%clk 0:04:50.5]} 11. Qxf3
{[%clk 0:04:49.9]} 11... Nc6 {[%clk 0:04:50.4]} 12. Bb5 {[%clk 0:04:48]} 12...
Nxd4 {[%clk 0:04:49]} 13. Qxb7 {[%clk 0:04:42.5]} 13... Nxb5 {[%clk 0:04:48.4]}
14. Qxb5 {[%clk 0:04:41.3]} 14... Rb8 {[%clk 0:04:47.8]} 15. Qe2 {[%clk
0:04:37.6]} 15... Qd4 {[%clk 0:04:44.1]} 16. g3 {[%clk 0:04:32]} 16... Qb4
{[%clk 0:04:33.6]} 17. Rab1 {[%clk 0:04:27.8]} 17... e6 {[%clk 0:04:29.1]} 18.
a3 {[%clk 0:04:26.8]} 18... Qb3 {[%clk 0:04:28]} 19. Qd1 {[%clk 0:04:16]} 19...
Bxc3 {[%clk 0:04:25.4]} 20. Qxb3 {[%clk 0:04:12.9]} 20... Rxb3 {[%clk
0:04:25.3]} 21. bxc3 {[%clk 0:04:12.3]} 21... Rxc3 {[%clk 0:04:25.2]} 22. a4
{[%clk 0:04:10.6]} 22... Ra3 {[%clk 0:04:23.3]} 23. Rb7 {[%clk 0:04:09.2]} 23...
Rc8 {[%clk 0:04:21.3]} 24. Rxc7 {[%clk 0:04:08.8]} 24... Rxc7 {[%clk 0:04:20.3]}
0-1

[Event "Live Chess"]
[Site "Chess.com"]
[Date "2023.05.20"]
[Round "-"]
[White "weibs440"]
[Black "Cimon"]
[Result "0-1"]
[WhiteElo "941"]
[BlackElo "1831"]
[TimeControl "300"]
[EndTime "15:24:06 PDT"]
[Termination "Cimon won by resignation"]

1. e4 {[%clk 0:04:58.5]} 1... c5 {[%clk 0:04:57.9]} 2. Nc3 {[%clk 0:04:57.2]}
2... Nc6 {[%clk 0:04:56.4]} 3. f4 {[%clk 0:04:56.3]} 3... d6 {[%clk 0:04:54.6]}
4. Nf3 {[%clk 0:04:55.8]} 4... Nf6 {[%clk 0:04:53.1]} 5. Bb5 {[%clk 0:04:55]}
5... g6 {[%clk 0:04:44.4]} 6. O-O {[%clk 0:04:52.6]} 6... Bg7 {[%clk 0:04:42.5]}
7. d3 {[%clk 0:04:50.4]} 7... O-O {[%clk 0:04:39.2]} 8. Bxc6 {[%clk 0:04:46.4]}
8... bxc6 {[%clk 0:04:36.8]} 9. Qe1 {[%clk 0:04:45.6]} 9... Bg4 {[%clk
0:04:29.6]} 10. Qf2 {[%clk 0:04:44.4]} 10... Bxf3 {[%clk 0:04:28.4]} 11. Qxf3
{[%clk 0:04:43.2]} 11... Nd7 {[%clk 0:04:25.2]} 12. Ne2 {[%clk 0:04:25.6]} 12...
Rb8 {[%clk 0:04:21.9]} 13. Nc3 {[%clk 0:04:13.7]} 13... Nb6 {[%clk 0:04:08.2]}
14. Rb1 {[%clk 0:04:10.4]} 14... d5 {[%clk 0:04:04.3]} 15. e5 {[%clk 0:04:08.5]}
15... e6 {[%clk 0:03:58.4]} 16. Qf2 {[%clk 0:04:05.6]} 16... Nd7 {[%clk
0:03:52.8]} 17. Na4 {[%clk 0:04:03.5]} 17... Qa5 {[%clk 0:03:44.8]} 18. b3
{[%clk 0:04:02.4]} 18... d4 {[%clk 0:03:34.1]} 19. Bd2 {[%clk 0:03:39.9]} 19...
Qc7 {[%clk 0:03:26.7]} 20. c3 {[%clk 0:03:29.3]} 20... f6 {[%clk 0:03:10.9]} 21.
cxd4 {[%clk 0:03:20.8]} 21... fxe5 {[%clk 0:03:09.4]} 22. dxe5 {[%clk
0:03:06.5]} 22... Nxe5 {[%clk 0:03:04.3]} 23. Qxc5 {[%clk 0:02:55.4]} 23... Nxd3
{[%clk 0:02:54.2]} 24. Qe3 {[%clk 0:02:36.7]} 24... Qd6 {[%clk 0:02:40]} 25.
Rbd1 {[%clk 0:02:19.5]} 25... Bd4 {[%clk 0:02:37.4]} 26. Qxd4 {[%clk 0:01:30.9]}
26... Qxd4+ {[%clk 0:02:19.3]} 27. Kh1 {[%clk 0:01:14.2]} 27... Nf2+ {[%clk
0:02:16.4]} 28. Rxf2 {[%clk 0:01:09.4]} 28... Qxf2 {[%clk 0:02:14.8]} 0-1

[Event "Live Chess"]
[Site "Chess.com"]
[Date "2023.05.20"]
[Round "-"]
[White "LodeshChess"]
[Black "manthanit"]
[Result "1-0"]
[WhiteElo "1106"]
[BlackElo "1022"]
[TimeControl "300"]
[EndTime "15:24:28 PDT"]
[Termination "LodeshChess won by checkmate"]

1. e4 {[%clk 0:04:59.4]} 1... e6 {[%clk 0:04:58.1]} 2. d4 {[%clk 0:04:57.8]}
2... d5 {[%clk 0:04:57.7]} 3. e5 {[%clk 0:04:57.5]} 3... c5 {[%clk 0:04:56.4]}
4. Nf3 {[%clk 0:04:57.1]} 4... Nc6 {[%clk 0:04:54.9]} 5. c3 {[%clk 0:04:56.7]}
5... a6 {[%clk 0:04:53.9]} 6. Bd3 {[%clk 0:04:51.9]} 6... Qb6 {[%clk 0:04:52.5]}
7. O-O {[%clk 0:04:50.5]} 7... cxd4 {[%clk 0:04:51.4]} 8. cxd4 {[%clk
0:04:40.6]} 8... Nxd4 {[%clk 0:04:50.1]} 9. Nxd4 {[%clk 0:04:39.6]} 9... Qxd4
{[%clk 0:04:49.2]} 10. Bb5+ {[%clk 0:04:38.6]} 10... axb5 {[%clk 0:04:46]} 11.
Qxd4 {[%clk 0:04:37.5]} 11... Bd7 {[%clk 0:04:38.7]} 12. Nd2 {[%clk 0:04:25.7]}
12... Rc8 {[%clk 0:04:38.1]} 13. Nf3 {[%clk 0:04:22.3]} 13... Bc5 {[%clk
0:04:36.9]} 14. Qg4 {[%clk 0:04:13]} 14... g6 {[%clk 0:04:31.4]} 15. Bg5 {[%clk
0:04:06.2]} 15... Ne7 {[%clk 0:04:29.6]} 16. Bf6 {[%clk 0:04:02.6]} 16... O-O
{[%clk 0:04:23.5]} 17. Qg5 {[%clk 0:03:57.8]} 17... Nf5 {[%clk 0:04:22.2]} 18.
g4 {[%clk 0:03:51.4]} 18... h6 {[%clk 0:04:19.8]} 19. Qd2 {[%clk 0:03:43.7]}
19... Nd4 {[%clk 0:03:56.6]} 20. Qxh6 {[%clk 0:03:37.4]} 20... Nxf3+ {[%clk
0:03:55.3]} 21. Kh1 {[%clk 0:03:27.2]} 21... Ng5 {[%clk 0:03:00.6]} 22. Qg7#
{[%clk 0:03:10.1]} 1-0

[Event "Live Chess"]
[Site "Chess.com"]
[Date "2023.05.20"]
[Round "-"]
[White "Doge_Dandolo"]
[Black "Jo1ts"]
[Result "1-0"]
[WhiteElo "2029"]
[BlackElo "771"]
[TimeControl "300"]
[EndTime "15:24:45 PDT"]
[Termination "Doge_Dandolo won by resignation"]

1. Nf3 {[%clk 0:04:59.1]} 1... d5 {[%clk 0:04:56.5]} 2. c4 {[%clk 0:04:56.7]}
2... dxc4 {[%clk 0:04:52.8]} 3. e3 {[%clk 0:04:53.1]} 3... Nc6 {[%clk
0:04:47.4]} 4. Bxc4 {[%clk 0:04:51.8]} 4... h6 {[%clk 0:04:33.3]} 5. d4 {[%clk
0:04:49.4]} 5... Bg4 {[%clk 0:04:29.3]} 6. O-O {[%clk 0:04:43.8]} 6... e5 {[%clk
0:04:20.9]} 7. h3 {[%clk 0:04:41.4]} 7... Bxf3 {[%clk 0:04:17.4]} 8. Qxf3 {[%clk
0:04:40]} 8... f6 {[%clk 0:04:09.9]} 9. Qh5+ {[%clk 0:04:36.6]} 9... Kd7 {[%clk
0:04:01.7]} 10. Qf5+ {[%clk 0:04:31]} 10... Ke8 {[%clk 0:03:56.3]} 11. Rd1
{[%clk 0:04:25.6]} 11... exd4 {[%clk 0:03:50.7]} 12. exd4 {[%clk 0:04:18.5]}
12... Nxd4 {[%clk 0:03:44.4]} 13. Qe4+ {[%clk 0:04:16.8]} 1-0